lending/lending_fUSD_20250706
["ID","MTS","AMOUNT","RATE_DAILY","PERIOD"]
[369905128,1751772633563,-152.08231653,0.00017336,2]
[369905129,1751772633573,-1411.0,0.00017337,2]
[369905130,1751772633583,-189.0,0.00017431,2]
[369905131,1751772633593,-150.0,0.00017489,2]
[369905132,1751772633602,-491.1155086,0.0001749,2]
[369905133,1751772633612,-337.74,0.000176,2]
[369905134,1751772633621,-150.0,0.0001761,2]
[369905135,1751772633632,-553.22513613,0.0001761,2]
[369905136,1751772633642,-999.0,0.0001761,2]
[369905137,1751772633652,-4567.76194022,0.0001769,2]
[369905138,1751772633661,-3342.08056974,0.000177,2]
[369905139,1751772633670,-3342.08056947,0.000177,2]
[369905140,1751772633680,-3342.08056947,0.000177,2]
[369905141,1751772633689,-3342.08056947,0.000177,2]
[369905142,1751772633699,-150.0,0.0001771,2]
[369905143,1751772633710,-168.0,0.00017734,2]
[369905144,1751772633719,-168.0,0.00017745,2]
[369905145,1751772633728,-150.0,0.00017751,2]
[369905146,1751772633738,-150.0,0.00017773,2]
[369905147,1751772633747,-150.0,0.00017773,2]
[369905148,1751772633757,-150.0,0.00017773,2]
[369905149,1751772633766,-183.54514334,0.00017773,2]
[369905150,1751772633776,-500.0,0.00017773,2]
[369905151,1751772633786,-150.0,0.00017773,2]
[369905152,1751772633795,-500.0,0.00017773,2]
[369905153,1751772633804,-150.72833725,0.00017773,2]
[369905154,1751772633814,-152.3101411,0.00017773,2]
[369905155,1751772633823,-150.0,0.00017773,2]
[369905156,1751772633832,-150.0,0.00017773,2]
[369905157,1751772633842,-500.0,0.00017773,2]
[369905158,1751772633851,-500.0,0.00017773,2]
[369905159,1751772633860,-574.0,0.00017773,2]
[369905160,1751772633870,-152.42012096,0.00017773,2]
[369905161,1751772633879,-150.0,0.00017773,2]
[369905162,1751772633888,-150.0,0.00017773,2]
[369905163,1751772633898,-150.0,0.00017773,2]
[369905164,1751772633908,-150.0,0.00017773,2]
[369905165,1751772633917,-658.0,0.00017773,2]
[369905166,1751772633926,-2000.0,0.000178,2]
[369905167,1751772633936,-6286.80232951,0.000178,2]
[369905168,1751772633945,-524.81854796,0.000178,2]
[369905169,1751772633955,-168.0,0.00017825,2]
[369905170,1751772633965,-150.0,0.00017843,2]
[369905171,1751772633974,-189.0,0.00017846,2]
[369905172,1751772633984,-200.0,0.00017884,2]
[369905173,1751772633994,-999.0,0.00017884,2]
[369905174,1751772634003,-154.39,0.0001789,2]
[369905175,1751772634012,-447.73,0.0001789,3]
[369905176,1751772634022,-1727.91067335,0.00017899,2]
[369905177,1751772634031,-42375.49973743,0.00017899,2]
[369905178,1751772634044,-20191.02026854,0.00017899,2]
[369905179,1751772634096,-38662.74081928,0.00017899,2]
[369905180,1751772634115,-2255.34379105,0.00017899,2]
[369905181,1751772634193,-250.0,0.00017899,2]
[369905182,1751772634205,-285.34650141,0.00017899,2]
[369905183,1751772634229,-178743.04851823,0.00017899,2]
[369905184,1751772634252,-1609.63806493,0.00017899,2]
[369905185,1751772634263,-418.9895437,0.00017899,2]
[369905186,1751772634275,-600.0,0.00017899,2]
[369905192,1751772637937,-202.94219518,0.00017336,2]
[369905193,1751772637946,-86.08569034,0.00017336,2]
[369905194,1751772638046,-543.91430966,0.00017336,2]
[369905195,1751772638055,-267.98567534,0.0001761,2]
[369905196,1751772638067,-280.0,0.0001761,2]
[369905197,1751772638103,-82.01432466,0.0001761,2]
[369905198,1751772638112,-427.98864994,0.00017884,2]
[369905200,1751772638212,-202.01135006,0.00017884,2]
[369905202,1751772638221,-1208.49043923,0.00017899,2]
[369905203,1751772638232,-562.66450189,0.00017899,2]
[369905204,1751772638271,-482.640001,0.00017899,2]
[369905377,1751772640137,-3156.71032606,0.00017899,2]
[369905379,1751772640153,-81630.95140313,0.00017899,2]
[369905384,1751772640192,-3819.19737214,0.00017899,2]
[369905387,1751772640207,-1250.56726282,0.00017899,2]
[369905420,1751772640509,-28929.95094421,0.00017899,2]
[369905698,1751772643051,-734.71,0.00014117,2]
[369905701,1751772643063,-3176.51608702,0.00014117,2]
[369905702,1751772643073,-1516.51227979,0.00017899,2]
[369905707,1751772643107,-605.70812265,0.00017899,2]
[369905717,1751772643169,-229998.43142927,0.00017899,2]
[369905723,1751772643218,-7107.05310866,0.00017899,2]
[369905729,1751772643275,-7038.72233196,0.00017899,2]
[369905732,1751772643287,-21149.97477974,0.00017899,2]
[369906580,1751773021275,525.0,0.00013317,2]
[369906590,1751773199146,594.0,0.0002101,120]
[369906600,1751773832134,-469.5,0.00013699,2]
[369906601,1751773832144,-130.5,0.00014063,2]
[369906602,1751773832240,-380.926332,0.00014063,2]
[369906603,1751773832252,-13.573668,0.00014063,2]
[369906604,1751773832261,-250.0,0.00015,2]
[369906605,1751773832271,-151.0,0.00015456,2]
[369906606,1751773832280,-500.0,0.00015534,2]
[369906607,1751773832289,-249.71,0.0001607,2]
[369906608,1751773832299,-159.36,0.00016143,2]
[369906609,1751773832308,-250.0,0.00016155,2]
[369906610,1751773832318,-1000.0,0.00016185,2]
[369906611,1751773832327,-165.06,0.00016273,2]
[369906612,1751773832337,-2904.3,0.00016301,2]
[369906613,1751773832346,-165.06,0.00016327,2]
[369906614,1751773832356,-165.06,0.00016381,2]
[369906615,1751773832366,-165.06,0.00016435,2]
[369906616,1751773832376,-666.0,0.00016438,2]
[369906617,1751773832386,-1179.0,0.00016472,2]
[369906618,1751773832396,-605.22,0.00016473,2]
[369906619,1751773832405,-265.77,0.00016473,2]
[369906620,1751773832414,-600.0,0.00016529,2]
[369906621,1751773832424,-300.0,0.00016529,2]
[369906622,1751773832434,-151.0,0.00016531,2]
[369906623,1751773832443,-151.0,0.00016531,2]
[369906624,1751773832453,-151.0,0.00016531,2]
[369906625,1751773832463,-151.0,0.00016531,2]
[369906626,1751773832472,-151.0,0.00016531,2]
[369906627,1751773832481,-151.0,0.00016531,2]
[369906628,1751773832490,-151.0,0.00016531,2]
[369906629,1751773832500,-151.0,0.00016531,2]
[369906630,1751773832509,-151.0,0.00016531,2]
[369906631,1751773832518,-151.0,0.00016531,2]
[369906632,1751773832527,-151.0,0.00016531,2]
[369906633,1751773832536,-151.0,0.00016531,2]
[369906634,1751773832545,-151.0,0.00016531,2]
[369906635,1751773832554,-151.0,0.00016531,2]
[369906637,1751773832564,-884.0,0.00016534,2]
[369906639,1751773832573,-435.09,0.00016536,2]
[369906641,1751773832582,-1621.71606346,0.00016541,2]
[369906649,1751773832659,-2813.38254034,0.00016541,2]
[369906651,1751773832671,-19464.9013962,0.00016541,2]
[369906653,1751773832680,-200.0,0.00016597,2]
[369906655,1751773832689,-555.08,0.00016656,2]
[369906657,1751773832698,-313.48,0.00016672,2]
[369906659,1751773832708,-150.47215237,0.00016705,2]
[369906661,1751773832717,-2198.74,0.00016708,2]
[369906663,1751773832726,-168.94,0.00016712,2]
[369906665,1751773832735,-1115.4,0.00016741,2]
[369906667,1751773832745,-525.0,0.00016934,5]
[369906668,1751773832754,-300.0,0.00017,2]
[369906670,1751773832763,-168.0,0.00017073,2]
[369906671,1751773832772,-168.0,0.0001743,2]
[369906672,1751773832781,-15742.51108755,0.000175,2]
[369906673,1751773832841,-440.67,0.000175,2]
[369906674,1751773832851,-43209.83448992,0.000175,2]
[369906675,1751773832862,-11094.50142479,0.000175,2]
[369906677,1751773838142,-775.44931369,0.000175,2]
[369906861,1751773840333,-42696.80779597,0.000175,2]
[369906863,1751773840343,-979.0,0.00017504,2]
[369906865,1751773840353,-264.978544,0.00017541,2]
[369906867,1751773840363,-164.09,0.00017571,2]
[369906869,1751773840373,-164.09,0.00017571,2]
[369906871,1751773840382,-163.95,0.00017571,2]
[369906873,1751773840391,-2962.12288653,0.000176,2]
[369906875,1751773840401,-2962.12288634,0.00017624,2]
[369906877,1751773840410,-5666.69811783,0.0001773,2]
[369906879,1751773840419,-871.79004856,0.0001779,2]
[369906881,1751773840429,-151.0,0.000178,2]
[369906883,1751773840438,-151.0,0.000178,2]
[369906885,1751773840448,-151.0,0.000178,2]
[369906887,1751773840458,-159.808798,0.000178,2]
[369906889,1751773840467,-159.808798,0.000178,2]
[369906891,1751773840477,-2000.0,0.000178,2]
[369906893,1751773840487,-151.0,0.000178,2]
[369906895,1751773840496,-151.0,0.000178,2]
[369906897,1751773840506,-151.0,0.000178,2]
[369906899,1751773840516,-151.0,0.000178,2]
[369906901,1751773840525,-151.0,0.000178,2]
[369906903,1751773840536,-151.0,0.000178,2]
[369906905,1751773840545,-524.153661,0.000178,2]
[369906907,1751773840555,-151.0,0.000178,2]
[369906909,1751773840564,-524.153661,0.000178,2]
[369906911,1751773840573,-151.0,0.000178,2]
[369906913,1751773840582,-151.0,0.000178,2]
[369906915,1751773840592,-151.0,0.000178,2]
[369906917,1751773840601,-264.056195,0.000178,2]
[369906919,1751773840610,-264.056195,0.000178,2]
[369906921,1751773840619,-1254.987034,0.000178,2]
[369906923,1751773840628,-1254.987034,0.000178,2]
[369906925,1751773840638,-267.184285,0.000178,2]
[369906926,1751773840647,-267.184285,0.000178,2]
[369906928,1751773840655,-151.0,0.000178,2]
[369906930,1751773840665,-162.86701232,0.000178,2]
[369906932,1751773840674,-6616.18672934,0.000178,2]
[369906934,1751773840682,-4161.66709919,0.000178,2]
[369906936,1751773840691,-403.38,0.00017863,2]
[369906938,1751773840700,-168.0,0.00017869,2]
[369906940,1751773840709,-304.20038007,0.00017872,2]
[369906942,1751773840718,-500.0,0.00017873,2]
[369906943,1751773840727,-500.0,0.00017873,2]
[369906945,1751773840736,-500.0,0.00017873,2]
[369906947,1751773840745,-500.0,0.00017873,2]
[369906949,1751773840754,-500.0,0.00017873,2]
[369906951,1751773840764,-505.04610325,0.00017873,2]
[369906953,1751773840774,-167.88550649,0.00017873,2]
[369906955,1751773840782,-500.0,0.00017873,2]
[369906957,1751773840791,-500.0,0.00017873,2]
[369906959,1751773840801,-159.96589246,0.00017873,2]
[369906961,1751773840809,-159.96569365,0.00017873,2]
[369906963,1751773840818,-162.90690101,0.00017873,2]
[369906965,1751773840827,-500.0,0.00017873,2]
[369906967,1751773840835,-305.81840506,0.00017873,2]
[369906969,1751773840845,-500.0,0.00017873,2]
[369906971,1751773840854,-500.0,0.00017873,2]
[369906973,1751773840862,-171.28254985,0.00017873,2]
[369906975,1751773840871,-157.04532744,0.00017873,2]
[369906977,1751773840880,-167.03541907,0.00017873,2]
[369906979,1751773840889,-500.73808414,0.00017873,2]
[369906981,1751773840898,-159.9666246,0.00017873,2]
[369906982,1751773840907,-500.0,0.00017873,2]
[369906984,1751773840916,-500.0,0.00017873,2]
[369906986,1751773840924,-500.0,0.00017873,2]
[369906988,1751773840934,-158.15929497,0.00017873,2]
[369906990,1751773840944,-505.68403482,0.00017873,2]
[369906992,1751773840953,-590.58695078,0.00017873,2]
[369906994,1751773840962,-500.0,0.00017873,2]
[369906996,1751773840971,-505.72640596,0.00017873,2]
[369906998,1751773840980,-160.37673278,0.00017873,2]
[369907000,1751773840989,-500.0,0.00017873,2]
[369907002,1751773840998,-501.14936882,0.00017873,2]
[369907004,1751773841007,-150.0,0.00017884,2]
[369907006,1751773841016,-958.0,0.00017884,2]
[369907008,1751773841025,-150.0,0.00017884,2]
[369907010,1751773841034,-150.0,0.00017884,2]
[369907012,1751773841044,-150.0,0.00017884,2]
[369907014,1751773841054,-150.0,0.00017884,2]
[369907016,1751773841063,-150.0,0.00017884,2]
[369907037,1751773841257,-150.0,0.00017884,2]
[369907038,1751773841267,-150.0,0.00017884,2]
[369907040,1751773841276,-587.0,0.00017884,2]
[369907042,1751773841286,-150.0,0.00017884,2]
[369907044,1751773841296,-150.0,0.00017884,2]
[369907046,1751773841305,-500.0,0.00017884,2]
[369907048,1751773841314,-666.0,0.00017884,2]
[369907050,1751773841323,-150.0,0.00017884,2]
[369907052,1751773841332,-150.0,0.00017884,2]
[369907054,1751773841342,-150.0,0.00017884,2]
[369907056,1751773841351,-150.0,0.00017884,2]
[369907058,1751773841360,-150.90360646,0.00017884,2]
[369907060,1751773841369,-150.0,0.00017884,2]
[369907062,1751773841379,-150.0,0.00017884,2]
[369907064,1751773841388,-150.0,0.00017884,2]
[369907066,1751773841397,-500.0,0.00017884,2]
[369907067,1751773841406,-152.98490448,0.00017884,2]
[369907069,1751773841417,-150.0,0.00017884,2]
[369907071,1751773841427,-150.0,0.00017884,2]
[369907073,1751773841436,-150.77766104,0.00017884,2]
[369907075,1751773841446,-150.0,0.00017884,2]
[369907077,1751773841455,-150.0,0.00017884,2]
[369907079,1751773841464,-152.88968369,0.00017884,2]
[369907081,1751773841473,-378.80411099,0.00017884,2]
[369907083,1751773841483,-403.38,0.00017889,2]
[369907085,1751773841492,-500.0,0.00017889,2]
[369907087,1751773841501,-150.0,0.00017889,2]
[369907089,1751773841511,-153.13577813,0.00017889,2]
[369907090,1751773841520,-500.0,0.00017889,2]
[369907091,1751773841529,-150.0,0.00017889,2]
[369907092,1751773841538,-500.0,0.00017889,2]
[369907093,1751773841547,-150.0,0.00017889,2]
[369907094,1751773841556,-150.3235112,0.00017889,2]
[369907095,1751773841566,-150.55667846,0.00017889,2]
[369907096,1751773841575,-500.0,0.00017889,2]
[369907097,1751773841585,-150.0,0.00017889,2]
[369907098,1751773841594,-150.75401129,0.00017889,2]
[369907099,1751773841604,-150.0,0.00017889,2]
[369907100,1751773841614,-151.05413073,0.00017889,2]
[369907101,1751773841623,-403.38,0.0001789,2]
[369907102,1751773841632,-403.38,0.0001789,2]
[369907103,1751773841643,-403.38,0.0001789,2]
[369907104,1751773841653,-500.0,0.00017899,2]
[369907105,1751773841662,-500.0,0.00017899,2]
[369907106,1751773841671,-500.0,0.00017899,2]
[369907107,1751773841681,-181.87558169,0.00017899,2]
[369907108,1751773841690,-500.0,0.00017899,2]
[369907109,1751773841699,-500.0,0.00017899,2]
[369907111,1751773841708,-500.0,0.00017899,2]
[369907113,1751773841718,-500.0,0.00017899,2]
[369907115,1751773841727,-500.0,0.00017899,2]
[369907117,1751773841736,-500.0,0.00017899,2]
[369907119,1751773841746,-500.0,0.00017899,2]
[369907121,1751773841755,-242.18567779,0.00017899,2]
[369907123,1751773841764,-155.321,0.00017899,2]
[369907125,1751773841773,-151.0,0.00017899,2]
[369907127,1751773841782,-414.09824763,0.00017899,2]
[369907129,1751773841793,-1000.0,0.00017899,2]
[369907131,1751773841802,-1000.0,0.00017899,2]
[369907133,1751773841811,-1000.0,0.00017899,2]
[369907135,1751773841821,-1000.0,0.00017899,2]
[369907137,1751773841830,-1000.0,0.00017899,2]
[369907139,1751773841839,-1000.0,0.00017899,2]
[369907141,1751773841848,-1000.0,0.00017899,2]
[369907143,1751773841857,-1000.0,0.00017899,2]
[369907144,1751773841866,-1000.0,0.00017899,2]
[369907145,1751773841874,-1000.0,0.00017899,2]
[369907146,1751773841883,-1000.0,0.00017899,2]
[369907147,1751773841893,-1000.0,0.00017899,2]
[369907148,1751773841902,-1000.0,0.00017899,2]
[369907149,1751773841911,-1000.0,0.00017899,2]
[369907150,1751773841920,-1000.0,0.00017899,2]
[369907151,1751773841929,-1000.0,0.00017899,2]
[369907152,1751773841938,-1000.0,0.00017899,2]
[369907153,1751773841947,-1000.0,0.00017899,2]
[369907154,1751773841956,-1000.0,0.00017899,2]
[369907155,1751773841966,-1000.0,0.00017899,2]
[369907156,1751773841975,-1000.0,0.00017899,2]
[369907157,1751773841984,-1000.0,0.00017899,2]
[369907158,1751773841993,-1000.0,0.00017899,2]
[369907160,1751773842003,-1000.0,0.00017899,2]
[369907162,1751773842012,-1000.0,0.00017899,2]
[369907164,1751773842021,-1000.0,0.00017899,2]
[369907166,1751773842030,-1000.0,0.00017899,2]
[369907168,1751773842040,-1000.0,0.00017899,2]
[369907170,1751773842049,-736.1134218,0.00017899,2]
[369907172,1751773842058,-2656.87478,0.00017899,2]
[369907174,1751773842068,-151.0,0.000179,2]
[369907176,1751773842079,-151.0,0.000179,2]
[369907178,1751773842088,-151.0,0.000179,2]
[369907180,1751773842097,-155.787682,0.000179,2]
[369907182,1751773842106,-151.0,0.000179,2]
[369907184,1751773842115,-159.808798,0.000179,2]
[369907186,1751773842124,-159.808798,0.000179,2]
[369907188,1751773842133,-159.808798,0.000179,2]
[369907190,1751773842142,-159.808798,0.000179,2]
[369907192,1751773842151,-151.0,0.000179,2]
[369907193,1751773842160,-151.0,0.000179,2]
[369907195,1751773842169,-151.0,0.000179,2]
[369907197,1751773842179,-151.0,0.000179,2]
[369907199,1751773842189,-151.0,0.000179,2]
[369907201,1751773842199,-151.0,0.000179,2]
[369907203,1751773842209,-151.0,0.000179,2]
[369907205,1751773842218,-216.410387,0.000179,2]
[369907207,1751773842228,-151.0,0.000179,2]
[369907209,1751773842238,-151.0,0.000179,2]
[369907211,1751773842247,-151.0,0.000179,2]
[369907213,1751773842256,-151.0,0.000179,2]
[369907215,1751773842267,-524.153661,0.000179,2]
[369907217,1751773842276,-524.153661,0.000179,2]
[369907219,1751773842286,-288.027646,0.000179,2]
[369907221,1751773842295,-524.153661,0.000179,2]
[369907223,1751773842304,-524.153661,0.000179,2]
[369907225,1751773842314,-151.0,0.000179,2]
[369907228,1751773842327,-151.0,0.000179,2]
[369907231,1751773842344,-241.56142,0.000179,2]
[369907233,1751773842359,-151.0,0.000179,2]
[369907236,1751773842374,-151.0,0.000179,2]
[369907239,1751773842391,-264.056195,0.000179,2]
[369907241,1751773842407,-264.056195,0.000179,2]
[369907244,1751773842421,-264.056195,0.000179,2]
[369907246,1751773842432,-264.056195,0.000179,2]
[369907249,1751773842448,-1254.987034,0.000179,2]
[369907251,1751773842463,-1254.987034,0.000179,2]
[369907254,1751773842480,-1254.987034,0.000179,2]
[369907256,1751773842495,-1254.987034,0.000179,2]
[369907259,1751773842512,-267.184285,0.000179,2]
[369907262,1751773842527,-267.184285,0.000179,2]
[369907264,1751773842542,-267.184285,0.000179,2]
[369907267,1751773842558,-267.184285,0.000179,2]
[369907269,1751773842574,-151.0,0.000179,2]
[369907272,1751773842588,-151.0,0.000179,2]
[369907274,1751773842600,-17418.5065548,0.000179,2]
[369907277,1751773842615,-644.22324458,0.000179,2]
[369907279,1751773842628,-644.22324442,0.000179,2]
[369907281,1751773842640,-6076.9142052,0.000179,2]
[369907284,1751773842656,-44381.1849492,0.000179,2]
[369907286,1751773842669,-19125.9840745,0.000179,2]
[369907289,1751773842681,-165043.7636843,0.000179,2]
[369907291,1751773842694,-168.0,0.00017912,2]
[369907293,1751773842707,-644.22324442,0.00017933,2]
[369907296,1751773842720,-168.0,0.00017933,2]
[369907299,1751773842737,-168.0,0.00017972,2]
[369907301,1751773842750,-226.8,0.00017979,2]
[369907303,1751773842763,-644.22324442,0.00018,2]
[369907306,1751773842776,-6000.0,0.00018,2]
[369907308,1751773842789,-1700.0,0.00018,2]
[369907311,1751773842802,-151.0,0.00018,2]
[369907313,1751773842815,-6616.18672927,0.00018003,2]
[369907316,1751773842831,-4161.66709918,0.00018003,2]
[369907318,1751773842844,-168.0,0.00018038,2]
[369907320,1751773842857,-420.0,0.00018062,2]
[369907323,1751773842870,-644.22324442,0.00018066,2]
[369907325,1751773842882,-1520.0,0.000181,2]
[369907327,1751773842894,-168.0,0.00018109,2]
[369907329,1751773842907,-218.71,0.0001812,2]
[369907332,1751773842921,-168.0,0.00018122,2]
[369907334,1751773842934,-644.22324442,0.00018133,2]
[369907338,1751773842948,-958.0,0.00018158,2]
[369907340,1751773842961,-150.0,0.00018158,2]
[369907342,1751773842975,-150.0,0.00018158,2]
[369907346,1751773842988,-150.0,0.00018158,2]
[369907349,1751773843002,-150.0,0.00018158,2]
[369907353,1751773843015,-587.0,0.00018158,2]
[369907357,1751773843028,-150.0,0.00018158,2]
[369907360,1751773843042,-152.36898419,0.00018158,2]
[369907365,1751773843055,-503.85035143,0.00018158,2]
[369907368,1751773843069,-666.0,0.00018158,2]
[369907371,1751773843081,-150.94374643,0.00018158,2]
[369907375,1751773843095,-153.1627685,0.00018158,2]
[369907377,1751773843107,-206.23859216,0.00018158,2]
[369907380,1751773843120,-150.60015396,0.00018158,2]
[369907382,1751773843133,-150.0,0.00018158,2]
[369907384,1751773843146,-150.0,0.00018158,2]
[369907387,1751773843160,-500.0,0.00018158,2]
[369907389,1751773843174,-150.0,0.00018158,2]
[369907392,1751773843190,-150.0,0.00018158,2]
[369907395,1751773843209,-150.0,0.00018158,2]
[369907397,1751773843223,-618.21637479,0.00018163,2]
[369907399,1751773843236,-150.0,0.00018163,2]
[369907402,1751773843249,-500.0,0.00018163,2]
[369907404,1751773843264,-150.0,0.00018163,2]
[369907407,1751773843277,-500.0,0.00018163,2]
[369907409,1751773843289,-150.0,0.00018163,2]
[369907411,1751773843302,-502.60668742,0.00018163,2]
[369907414,1751773843315,-150.0,0.00018163,2]
[369907416,1751773843329,-150.0,0.00018163,2]
[369907418,1751773843342,-150.31476825,0.0001817,2]
[369907421,1751773843355,-644.22324442,0.00018199,2]
[369907423,1751773843368,-6616.18672927,0.00018206,2]
[369907425,1751773843381,-4161.66709918,0.00018206,2]
[369907428,1751773843394,-218.71,0.00018207,2]
[369907430,1751773843407,-1000.0,0.00018208,2]
[369907433,1751773843421,-168.0,0.00018208,2]
[369907435,1751773843433,-168.0,0.00018217,2]
[369907437,1751773843446,-644.22324442,0.00018266,2]
[369907441,1751773843459,-218.71,0.00018293,2]
[369907445,1751773843472,-510.70837761,0.00018322,2]
[369907448,1751773843485,-534.48630036,0.00018322,2]
[369907452,1751773843498,-500.0,0.00018322,2]
[369907454,1751773843510,-644.22324442,0.00018333,2]
[369907457,1751773843523,-167.53,0.00018346,2]
[369907459,1751773843536,-2962.12288634,0.00018348,2]
[369907461,1751773843549,-500.41618572,0.00018357,2]
[369907464,1751773843561,-500.86168065,0.00018357,2]
[369907466,1751773843574,-218.71,0.0001838,2]
[369907468,1751773843588,-171.47,0.00018389,2]
[369907471,1751773843602,-644.22324442,0.00018399,2]
[369907473,1751773843614,-6616.18672927,0.00018409,2]
[369907475,1751773843626,-4161.66709918,0.00018409,2]
[369907478,1751773843639,-1001.20798533,0.00018421,2]
[369907480,1751773843652,-500.47516346,0.00018421,2]
[369907482,1751773843664,-501.91276081,0.00018421,2]
[369907485,1751773843676,-508.46108805,0.00018421,2]
[369907487,1751773843689,-500.85752774,0.00018421,2]
[369907489,1751773843702,-505.07127526,0.00018421,2]
[369907492,1751773843714,-1037.40285656,0.00018421,2]
[369907494,1751773843727,-1003.79899958,0.00018421,2]
[369907497,1751773843741,-502.27717413,0.00018421,2]
[369907499,1751773843753,-501.76296815,0.00018421,2]
[369907501,1751773843767,-501.96357006,0.00018421,2]
[369907504,1751773843782,-1002.20799375,0.00018421,2]
[369907506,1751773843795,-503.28728188,0.00018421,2]
[369907509,1751773843808,-502.14966852,0.00018421,2]
[369907511,1751773843824,-958.0,0.00018432,2]
[369907515,1751773843836,-200.0,0.00018432,2]
[369907517,1751773843845,-204.22048356,0.00018432,2]
[369907518,1751773843854,-150.0,0.00018432,2]
[369907520,1751773843863,-587.0,0.00018432,2]
[369907522,1751773843873,-150.0,0.00018432,2]
[369907525,1751773843884,-666.0,0.00018432,2]
[369907527,1751773843894,-153.16880813,0.00018432,2]
[369907529,1751773843903,-150.0,0.00018432,2]
[369907560,1751773844187,-507.73207432,0.00018432,2]
[369907564,1751773844216,-150.0,0.00018432,2]
[369907566,1751773844228,-150.0,0.00018432,2]
[369907568,1751773844237,-300.0,0.00018436,2]
[369907570,1751773844247,-255.23535897,0.00018436,2]
[369907572,1751773844256,-152.8232419,0.00018436,2]
[369907574,1751773844266,-279.46717911,0.00018436,2]
[369907576,1751773844275,-300.0,0.00018436,2]
[369907578,1751773844283,-207.4,0.00018436,2]
[369907580,1751773844292,-300.0,0.00018436,2]
[369907582,1751773844302,-300.0,0.00018436,2]
[369907584,1751773844311,-300.0,0.00018436,2]
[369907586,1751773844321,-300.0,0.00018436,2]
[369907588,1751773844330,-300.0,0.00018436,2]
[369907590,1751773844339,-369.97546526,0.00018436,2]
[369907592,1751773844349,-151.0,0.00018436,2]
[369907594,1751773844358,-151.0,0.00018436,2]
[369907596,1751773844367,-151.0,0.00018436,2]
[369907598,1751773844376,-151.0,0.00018436,2]
[369907600,1751773844386,-151.0,0.00018436,2]
[369907602,1751773844395,-151.0,0.00018436,2]
[369907604,1751773844405,-151.0,0.00018436,2]
[369907606,1751773844414,-152.389909,0.00018436,2]
[369907608,1751773844423,-151.0,0.00018436,2]
[369907610,1751773844435,-152.349486,0.00018436,2]
[369907612,1751773844444,-237.174568,0.00018436,2]
[369907614,1751773844454,-237.174568,0.00018436,2]
[369907616,1751773844463,-151.0,0.00018436,2]
[369907618,1751773844473,-151.0,0.00018436,2]
[369907620,1751773844482,-150.0,0.00018437,2]
[369907622,1751773844492,-500.0,0.00018437,2]
[369907624,1751773844501,-150.0,0.00018437,2]
[369907626,1751773844510,-500.0,0.00018437,2]
[369907628,1751773844520,-150.0,0.00018437,2]
[369907630,1751773844530,-150.0,0.00018437,2]
[369907631,1751773844539,-200.0,0.00018437,2]
[369907633,1751773844548,-644.22324442,0.00018466,2]
[369907635,1751773844558,-218.71,0.00018467,2]
[369907637,1751773844567,-151.0,0.00018469,2]
[369907639,1751773844577,-289.01038,0.00018469,2]
[369907641,1751773844586,-151.0,0.00018469,2]
[369907643,1751773844596,-2993.807852,0.00018469,2]
[369907645,1751773844604,-151.0,0.00018469,2]
[369907647,1751773844614,-2993.807852,0.00018469,2]
[369907649,1751773844623,-151.0,0.00018469,2]